bitfinex-derivatives/quotes_SOLF0:USTF0_20260220
["timestamp","ask_amount","ask_price","bid_price","bid_amount"]
[1771545601576,15.14137385,82.531,82.441,4.31752397]
[1771545602278,11.35521538,82.513,82.441,4.31752397]
[1771545602482,11.35521538,82.512,82.441,4.31752397]
[1771545603182,1.67521538,82.512,82.441,4.31752397]
[1771545603385,10.9192,82.469,82.441,4.31752397]
[1771545604985,169.7631,82.514,82.403,4.32807561]
[1771545605184,15.14137385,82.513,82.403,4.32807561]
[1771545605483,21.8327,82.491,82.413,4.32807561]
[1771545605985,10.9206,82.458,82.413,4.32807561]
[1771545606585,21.8327,82.491,82.42,4.35948224]
[1771545606785,10.9205,82.46,82.42,4.35948224]
[1771545607084,21.8327,82.491,82.42,4.35948224]
[1771545607286,10.9207,82.458,82.42,4.35948224]
[1771545609188,169.7375,82.526,82.391,4.52506585]
[1771545609189,0.09260018,82.447,82.391,4.52506585]
[1771545609787,10.9223,82.446,82.401,4.52506585]
[1771545610081,0.08223622,82.427,82.401,4.52506585]
[1771545610286,10.9223,82.446,82.401,4.52506585]
[1771545610588,10.9231,82.44,82.401,4.52506585]
[1771545610982,21.8362,82.478,82.401,4.52506585]
[1771545612789,10.9228,82.442,82.401,4.52506585]
[1771545615792,10.9235,82.436,82.401,4.52506585]
[1771545616789,10.9247,82.428,82.401,4.52506585]
[1771545617092,169.8324,82.48,82.385,4.4315941]
[1771545618289,10.9264,82.415,82.385,4.4315941]
[1771545618490,21.8437,82.449,82.385,4.4315941]
[1771545619292,10.9243,82.43,82.385,4.4315941]
[1771545620894,10.9252,82.424,82.385,4.4315941]
[1771545621394,10.9259,82.419,82.385,4.4315941]
[1771545621989,169.8146,82.489,82.338,21.8731]
[1771545621990,169.8571,82.468,82.365,4.45115682]
[1771545622390,10.9267,82.412,82.367,15.39594216]
[1771545623694,10.9267,82.412,82.37,4.46324216]
[1771545624089,10.9278,82.404,82.37,4.46324216]
[1771545624990,169.8897,82.452,82.359,4.51098133]
[1771545625196,169.8916,82.451,82.359,4.51098133]
[1771545625587,10.9289,82.396,82.359,4.51098133]
[1771545625988,169.8286,82.482,82.369,4.54036511]
[1771545626192,169.8318,82.48,82.369,4.54036511]
[1771545626794,10.9259,82.418,82.379,4.54036511]
[1771545627792,10.9249,82.426,82.381,4.54036511]
[1771545628496,10.9257,82.42,82.381,4.54036511]
[1771545629195,169.8532,82.47,82.328,4.54391358]
[1771545629396,169.8577,82.468,82.328,4.54391358]
[1771545629997,10.9273,82.408,82.362,4.52732218]
[1771545630398,169.8751,82.459,82.362,4.52732218]
[1771545631797,10.9279,82.404,82.362,4.52732218]
[1771545631999,21.8476,82.434,82.362,4.52732218]
[1771545633794,10.9286,82.398,82.362,4.52732218]
[1771545634693,10.9272,82.409,82.362,4.52732218]
[1771545635101,21.8423,82.455,82.381,4.49037973]
[1771545635499,10.9254,82.422,82.381,4.49037973]
[1771545635700,169.8338,82.479,82.381,4.49037973]
[1771545636393,21.8428,82.453,82.381,4.49037973]
[1771545636797,21.8428,82.453,82.383,4.49371906]
[1771545637198,10.926,82.417,82.383,4.49371906]
[1771545638202,10.9269,82.411,82.383,4.49371906]
[1771545638698,169.9104,82.442,82.35,4.49623194]
[1771545639198,169.8979,82.448,82.35,4.49623194]
[1771545640000,10.9303,82.385,82.35,4.49623194]
[1771545646305,10.9295,82.391,82.35,4.49623194]
[1771545646702,10.9295,82.391,82.352,4.4780415]
[1771545647702,10.9295,82.391,82.354,4.4780415]
[1771545647902,21.8478,82.434,82.354,4.4780415]
[1771545648106,169.8826,82.456,82.354,4.4780415]
[1771545648402,169.8745,82.46,82.357,4.47017759]
[1771545648403,169.8833,82.455,82.357,4.47017759]
[1771545648807,10.9291,82.395,82.357,4.47017759]
[1771545649403,10.9298,82.39,82.357,4.47017759]
[1771545650303,3.88966313,82.443,82.378,3.84047709]
[1771545650505,3.88966313,82.443,82.352,3.84047709]
[1771545651107,169.869,82.462,82.352,3.84047709]
[1771545651108,3.88966313,82.391,82.352,3.84047709]
[1771545652408,3.88966313,82.391,82.355,3.84047709]
[1771545654009,3.88966313,82.441,82.364,3.84047709]
[1771545654710,3.88966313,82.43,82.381,3.84047709]
[1771545655213,10.9236,82.436,82.398,3.84047709]
[1771545659614,10.9243,82.43,82.398,3.84047709]
[1771545660415,14.81396313,82.43,82.398,3.84047709]
[1771545660607,10.9252,82.424,82.384,3.84047709]
[1771545660812,3.88966313,82.423,82.373,3.84047709]
[1771545661718,10.9263,82.416,82.373,3.84047709]
[1771545662016,10.9263,82.416,82.375,3.72039915]
[1771545663118,3.8654221,82.415,82.37,3.72039915]
[1771545663418,3.8654221,82.415,82.358,3.72039915]
[1771545663616,10.9291,82.394,82.358,3.72039915]
[1771545665916,10.9299,82.388,82.358,3.72039915]
[1771545668021,10.931,82.38,82.358,3.72039915]
[1771545668216,3.8654221,82.396,82.358,3.72039915]
[1771545668618,21.8519,82.418,82.358,3.72039915]
[1771545668619,3.95777715,82.417,82.359,4.02177972]
[1771545669622,3.95777715,82.399,82.359,4.02177972]
[1771545670323,10.9309,82.381,82.359,4.02177972]
[1771545673424,10.93,82.387,82.359,4.02177972]
[1771545674028,10.9308,82.381,82.359,4.02177972]
[1771545675332,10.9308,82.381,82.362,14.94691689]
[1771545675529,10.9308,82.381,82.359,4.02177972]
[1771545676532,10.9308,82.381,82.36,14.94691689]
[1771545680033,10.9308,82.381,82.36,18.96869661]
[1771545681034,3.95777715,82.412,82.361,4.02177972]
[1771545681229,3.95777715,82.412,82.365,4.02177972]
[1771545681434,3.95777715,82.412,82.373,18.96869661]
[1771545681635,3.95777715,82.412,82.374,4.02177972]
[1771545681832,10.9295,82.392,82.374,4.02177972]
[1771545682736,10.9285,82.399,82.374,4.02177972]
[1771545683131,3.95777715,82.412,82.374,7.972e-05]
[1771545683337,10.9292,82.393,82.374,7.972e-05]
[1771545686841,10.928,82.403,82.374,7.972e-05]
[1771545687244,10.928,82.403,82.375,1.82190724]
[1771545687442,10.9286,82.398,82.375,1.82190724]
[1771545691244,10.9286,82.398,82.375,16.76882413]
[1771545691640,10.9277,82.405,82.378,1.84011593]
[1771545691844,10.9277,82.405,82.379,14.94691689]
[1771545693244,10.9277,82.405,82.38,14.94691689]
[1771545693448,3.95777715,82.411,82.368,1.83092782]
[1771545694239,10.9284,82.399,82.368,1.83092782]
[1771545696449,0.08489306,82.392,82.368,1.83092782]
[1771545696646,0.08489306,82.392,82.375,1.85271145]
[1771545696850,10.9276,82.406,82.375,1.85271145]
[1771545697350,10.9276,82.406,82.375,1.7721266]
[1771545697848,10.9283,82.4,82.375,1.7721266]
[1771545698141,4.01315793,82.421,82.33,21.8752]
[1771545698142,4.01315793,82.421,82.377,1.6873229]
[1771545698348,21.8462,82.44,82.376,22.57534411]
[1771545698349,10.9257,82.42,82.383,1.6873229]
[1771545699350,10.9257,82.42,82.393,0.08534748]
[1771545700645,4.01315793,82.419,82.393,0.08534748]
[1771545701552,10.9275,82.406,82.393,0.08534748]
[1771545709859,4.01315793,82.439,82.393,1.82462753]
[1771545710361,4.01315793,82.439,82.395,1.74400017]
[1771545710558,4.01315793,82.439,82.404,1.74400017]
[1771545710854,4.01315793,82.45,82.405,1.74400017]
[1771545711161,4.01315793,82.45,82.406,1.74400017]
[1771545711456,4.01315793,82.45,82.419,0.07769143]
[1771545711760,10.9239,82.433,82.419,0.07769143]
[1771545711962,4.01315793,82.45,82.419,0.07769143]
[1771545712861,10.9238,82.434,82.419,0.07769143]
[1771545713460,10.9238,82.434,82.406,1.74400017]
[1771545713961,10.9238,82.434,82.418,0.08400521]
[1771545715863,4.01315793,82.44,82.418,0.08400521]
[1771545717965,10.9232,82.439,82.418,0.08400521]
[1771545723763,4.01315793,82.44,82.418,0.08400521]
[1771545723969,10.9223,82.445,82.418,0.08400521]
[1771545724872,10.9213,82.453,82.421,1.74156228]
[1771545725369,3.79709093,82.473,82.431,1.74156228]
[1771545725771,3.79709093,82.473,82.429,0.08588943]
[1771545726774,3.72899075,82.46,82.429,0.08588943]
[1771545727269,3.72899075,82.46,82.421,1.74156228]
[1771545727674,3.72899075,82.46,82.436,0.07697213]
[1771545730376,3.72899075,82.455,82.408,14.98723614]
[1771545730576,3.72899075,82.455,82.403,14.98723614]
[1771545730873,3.72899075,82.444,82.393,14.98723614]
[1771545731077,3.72899075,82.444,82.39,14.98723614]
[1771545731278,3.72899075,82.439,82.38,18.00102397]
[1771545731580,3.72899075,82.429,82.38,3.01378783]
[1771545732277,3.72899075,82.421,82.38,3.01378783]
[1771545733382,3.72899075,82.421,82.384,1.72156124]
[1771545733881,3.72899075,82.421,82.39,3.01378783]
[1771545739385,3.72899075,82.421,82.39,14.98723614]
[1771545740380,3.72899075,82.421,82.391,14.98723614]
[1771545742187,3.72899075,82.421,82.392,14.98723614]
[1771545745291,3.72899075,82.421,82.393,14.98723614]
[1771545747196,3.72899075,82.421,82.394,14.98723614]
[1771545749195,3.72899075,82.421,82.395,14.98723614]
[1771545749590,3.72899075,82.421,82.399,14.98723614]
[1771545749796,3.72899075,82.431,82.399,14.98723614]
[1771545750499,3.72899075,82.431,82.4,14.98723614]
[1771545751900,3.72899075,82.429,82.4,14.98723614]
[1771545752401,3.72899075,82.429,82.401,14.98723614]
[1771545752601,3.72899075,82.429,82.397,14.98723614]
[1771545752799,3.72899075,82.427,82.397,14.98723614]
[1771545753002,3.72899075,82.427,82.407,0.08338903]
[1771545754707,0.0772718,82.425,82.407,0.08338903]
[1771545756811,4.0546189,82.449,82.415,1.71273407]
[1771545757112,4.0546189,82.449,82.42,14.98723614]
[1771545757310,4.0546189,82.449,82.42,3.01528755]
[1771545757512,4.0546189,82.462,82.421,1.71288436]
[1771545757809,4.0546189,82.462,82.427,1.71288436]
[1771545758113,4.0546189,82.462,82.43,18.00252369]
[1771545758410,4.0546189,82.462,82.433,0.08481105]
[1771545760711,4.0546189,82.462,82.433,15.07204719]
[1771545762114,4.0546189,82.462,82.433,0.08481105]
[1771545763609,4.0546189,82.46,82.433,0.08481105]
[1771545763814,4.0546189,82.46,82.41,22.57534411]
[1771545763815,4.0546189,82.455,82.403,4.39796534]
[1771545764415,10.9219,82.449,82.403,4.39796534]
[1771545764608,3.01528755,82.46,82.403,4.39796534]
[1771545765617,3.01528755,82.45,82.396,22.57534411]
[1771545765915,3.01528755,82.45,82.391,4.37874887]
[1771545766817,10.9236,82.436,82.394,4.35473361]
[1771545768216,10.9244,82.43,82.394,4.35473361]
[1771545768707,3.01528755,82.44,82.394,4.35473361]
[1771545768908,3.01528755,82.45,82.394,4.35473361]
[1771545770616,10.9244,82.43,82.394,4.35473361]
[1771545771321,10.9235,82.437,82.395,4.36011416]
[1771545772216,3.01528755,82.45,82.395,4.36011416]
[1771545773714,10.9246,82.428,82.395,4.36011416]
[1771545774314,3.01528755,82.45,82.39,25.59063166]
[1771545774520,10.9255,82.422,82.386,22.57534411]
[1771545774819,10.9255,82.422,82.386,4.36049429]
[1771545775309,10.9255,82.422,82.387,4.36049429]
[1771545782217,3.01528755,82.44,82.391,4.3606004]
[1771545782418,3.01528755,82.45,82.392,4.3606004]
[1771545782619,3.01528755,82.45,82.395,4.3606004]
[1771545783018,10.9237,82.435,82.395,4.3606004]
[1771545783718,10.9237,82.435,82.397,4.3606004]
[1771545785229,10.9244,82.43,82.388,4.37296261]
[1771545785917,3.01528755,82.43,82.374,22.57534411]
[1771545786123,3.01528755,82.43,82.371,4.35430988]
[1771545786925,10.9246,82.429,82.381,4.35430988]
[1771545787130,10.9246,82.429,82.391,4.35443282]
[1771545789923,10.9232,82.439,82.391,4.35443282]
[1771545790430,10.9232,82.439,82.355,30.10453571]
[1771545790431,3.01528755,82.47,82.42,3.01528755]
[1771545791128,3.01528755,82.47,82.411,4.3478335]
[1771545791725,10.9198,82.465,82.413,4.3478335]
[1771545793725,10.9198,82.465,82.415,4.36116551]
[1771545795829,10.9207,82.458,82.415,4.36116551]
[1771545796031,10.9207,82.458,82.419,4.35945465]
[1771545797228,10.9214,82.452,82.419,4.35945465]
[1771545797731,10.9224,82.445,82.419,4.35945465]
[1771545797927,3.01528755,82.46,82.419,4.35945465]
[1771545798230,3.01528755,82.47,82.419,4.35945465]
[1771545798429,3.01528755,82.46,82.419,4.35945465]
[1771545798629,10.9211,82.455,82.419,4.35945465]
[1771545798828,3.01528755,82.48,82.421,4.35699429]
[1771545799028,3.01528755,82.48,82.428,4.35699429]
[1771545800230,10.9189,82.471,82.43,3.01528755]
[1771545800432,10.9189,82.471,82.431,4.34721423]
[1771545800729,3.01528755,82.48,82.431,4.34721423]
[1771545801631,21.8283,82.508,82.432,4.34721423]
[1771545801632,10.9187,82.473,82.432,4.34721423]
[1771545801826,10.9187,82.473,82.433,4.34721423]
[1771545803325,3.01211866,82.49,82.433,4.34721423]
[1771545804437,10.9197,82.465,82.433,4.34721423]
[1771545805638,10.9205,82.459,82.433,4.34721423]
[1771545811345,3.01211866,82.48,82.433,4.34721423]
[1771545811346,10.919,82.47,82.433,4.34721423]
[1771545811644,10.919,82.47,82.435,4.37084526]
[1771545813148,10.9178,82.48,82.44,7.39461025]
[1771545813349,3.01211866,82.5,82.441,4.38249159]
[1771545813645,10.9168,82.487,82.441,4.38249159]
[1771545818754,10.9168,82.487,82.442,4.36340775]
[1771545819255,10.9157,82.496,82.451,4.36340775]
[1771545819650,10.9163,82.491,82.451,4.36340775]
[1771545820355,10.917,82.486,82.451,4.36340775]
[1771545823462,3.01211866,82.5,82.451,4.36340775]
[1771545823764,3.01211866,82.5,82.44,3.01211866]
[1771545823765,3.01211866,82.49,82.437,4.2901076]
[1771545824365,10.9181,82.478,82.437,4.2901076]
[1771545829770,3.01211866,82.48,82.433,15.00081596]
[1771545829970,3.01211866,82.48,82.427,4.27416213]
[1771545830870,10.9196,82.466,82.427,4.27416213]
[1771545831374,10.9196,82.466,82.427,19.27497809]
[1771545831767,10.9196,82.466,82.427,4.27416213]
[1771545832273,10.9196,82.466,82.428,19.24035802]
[1771545833268,10.9196,82.466,82.43,15.00081596]
[1771545834272,10.9196,82.466,82.433,15.00081596]
[1771545835276,10.9196,82.466,82.435,15.00081596]
[1771545835967,10.9183,82.476,82.44,15.00081596]
[1771545836576,10.9197,82.465,82.44,15.00081596]
[1771545837167,3.01211866,82.47,82.432,1.596e-05]
[1771545837369,3.01211866,82.47,82.417,4.23445224]
[1771545837776,3.01211866,82.47,82.413,22.57534411]
[1771545837973,3.01211866,82.47,82.41,3.01211866]
[1771545837974,3.01211866,82.47,82.411,22.57534411]
[1771545838271,10.9222,82.447,82.411,22.57534411]
[1771545838476,3.01211866,82.45,82.402,22.57534411]
[1771545838677,3.01211866,82.45,82.398,26.8691382]
[1771545838877,169.7852,82.503,82.394,22.57534411]
[1771545838878,10.9243,82.43,82.394,22.57534411]
[1771545839078,10.9243,82.43,82.389,22.57534411]
[1771545839279,10.9243,82.43,82.388,4.29379409]
[1771545839581,10.9243,82.43,82.375,4.29379409]
[1771545839582,3.01211866,82.43,82.375,4.29379409]
[1771545840273,3.01211866,82.43,82.37,3.01211866]
[1771545840274,3.01211866,82.43,82.376,4.29732503]
[1771545840475,21.839,82.467,82.381,4.29732503]
[1771545840476,3.01211866,82.44,82.381,4.29732503]
[1771545841671,3.01211866,82.44,82.306,52.64976702]
[1771545841672,3.01211866,82.46,82.401,4.29732503]
[1771545842477,10.9231,82.44,82.401,4.29732503]
[1771545846086,10.9239,82.434,82.401,4.29732503]
[1771545847186,3.90793225,82.42,82.376,22.57534411]
[1771545847480,3.90793225,82.42,82.37,3.01211866]
[1771545847685,3.90793225,82.42,82.38,3.01211866]
[1771545848781,10.9269,82.411,82.37,3.01211866]
[1771545849291,10.9269,82.411,82.371,3.75463305]
[1771545849783,10.9281,82.402,82.371,3.75463305]
[1771545851388,10.9281,82.402,82.38,3.01211866]
[1771545853296,14.98158497,82.418,82.38,3.01211866]
[1771545853787,4.05558497,82.406,82.381,3.75463305]
[1771545853994,4.05558497,82.406,82.36,3.01211866]
[1771545854490,4.05558497,82.389,82.357,3.75463305]
[1771545854690,4.05558497,82.389,82.335,3.75463305]
[1771545854890,4.05558497,82.389,82.34,3.01211866]
[1771545855694,10.9314,82.377,82.34,3.01211866]
[1771545856390,10.9314,82.377,82.34,6.76675171]
[1771545856694,10.9314,82.377,82.341,3.75463305]
[1771545858199,4.03781309,82.376,82.341,3.75463305]
[1771545859199,169.917,82.439,82.315,469.67549308]
[1771545859200,4.03781309,82.369,82.315,469.67549308]
[1771545859396,4.03781309,82.369,82.316,3.75463305]
[1771545859702,4.03781309,82.349,82.292,3.75463305]
[1771545859893,4.03781309,82.349,82.3,3.01211866]
[1771545860093,4.03781309,82.349,82.301,3.75463305]
[1771545860697,10.9358,82.344,82.301,3.75463305]
[1771545862400,3.85690922,82.341,82.301,3.75463305]
[1771545866102,10.934,82.357,82.311,3.75463305]
[1771545866606,3.88379154,82.356,82.311,3.75463305]
[1771545867203,3.88379154,82.352,82.311,3.75463305]
[1771545867905,3.88379154,82.341,82.302,3.75463305]
[1771545868798,3.88379154,82.341,82.29,3.02182722]
[1771545869000,10.9386,82.323,82.291,3.75463305]
[1771545869401,3.83609868,82.33,82.291,3.75463305]
[1771545869602,14.77389868,82.329,82.291,3.75463305]
[1771545869799,3.02182722,82.34,82.291,3.75463305]
[1771545870003,3.83609868,82.353,82.301,3.75463305]
[1771545870202,4.00000218,82.369,82.311,3.75463305]
[1771545870602,4.00000218,82.369,82.321,3.75463305]
[1771545871507,10.9326,82.368,82.321,3.75463305]
[1771545872305,10.9334,82.362,82.321,3.75463305]
[1771545874813,3.98228379,82.361,82.321,3.75463305]
[1771545875108,3.02182722,82.37,82.31,3.02182722]
[1771545875109,3.98228379,82.358,82.31,3.02182722]
[1771545875310,3.98228379,82.349,82.304,3.75463305]
[1771545876716,10.9359,82.343,82.304,3.75463305]
[1771545881308,3.96832736,82.342,82.304,3.75463305]
[1771545881513,3.96832736,82.338,82.292,4.05679858]
[1771545881914,10.9376,82.33,82.292,4.05679858]
[1771545882117,3.96832736,82.329,82.292,4.05679858]
[1771545884618,3.96832736,82.329,82.28,7.0786258]
[1771545884821,3.96832736,82.329,82.281,4.05679858]
[1771545885418,3.02182722,82.32,82.27,3.02182722]
[1771545885619,3.95035427,82.319,82.268,4.05679858]
[1771545886326,14.88360809,82.309,82.268,4.05679858]
[1771545887223,3.94320809,82.309,82.268,4.05679858]
[1771545889120,3.94320809,82.309,82.262,10.9466]
[1771545889322,3.94320809,82.309,82.263,4.05679858]
[1771545891923,3.93486352,82.336,82.281,4.05679858]
[1771545892126,3.93486352,82.336,82.291,4.05679858]
[1771545892525,14.87150137,82.333,82.291,4.05679858]
[1771545892727,3.93420137,82.349,82.291,4.05679858]
[1771545892928,3.93420137,82.349,82.301,4.05679858]
[1771545893628,3.93420137,82.342,82.301,4.05679858]
[1771545895428,3.96832736,82.335,82.289,10.9429]
[1771545896526,206.4044,82.397,82.289,10.9429]
[1771545896527,3.96832736,82.329,82.289,10.9429]
[1771545896727,3.96832736,82.329,82.28,10.9442]
[1771545897222,3.96832736,82.325,82.274,4.05679858]
[1771545897621,3.02182722,82.31,82.274,4.05679858]
[1771545900331,10.9404,82.309,82.274,4.05679858]
[1771545900631,3.96832736,82.299,82.255,4.05679858]
[1771545901226,10.9425,82.293,82.255,4.05679858]
[1771545901525,3.96832736,82.311,82.255,4.05679858]
[1771545901725,3.02182722,82.32,82.271,4.05679858]
[1771545902130,10.9404,82.309,82.271,4.05679858]
[1771545902332,3.99993386,82.317,82.271,4.05679858]
[1771545902523,3.99993386,82.309,82.271,4.05679858]
[1771545902934,10.9422,82.296,82.252,3.68727088]
[1771545903328,3.99993386,82.309,82.252,3.68727088]
[1771545904834,10.941,82.305,82.252,3.68727088]
[1771545905337,3.99993386,82.309,82.253,3.68727088]
[1771545905634,3.99993386,82.309,82.261,3.68727088]
[1771545909232,3.99993386,82.309,82.263,3.92982311]
[1771545909431,3.84291608,82.324,82.271,3.92982311]
[1771545909636,3.84291608,82.324,82.281,3.92982311]
[1771545910137,10.9386,82.323,82.281,3.92982311]
[1771545910837,10.939,82.32,82.281,3.92982311]
[1771545911034,3.84291608,82.319,82.268,3.92982311]
[1771545912838,3.84291608,82.317,82.27,10.9455]
[1771545914539,3.84291608,82.317,82.276,10.9448]
[1771545915738,3.84291608,82.317,82.276,14.87462311]
[1771545916135,3.84291608,82.317,82.278,10.9445]
[1771545916336,3.84291608,82.317,82.279,3.92982311]
[1771545916734,10.9383,82.325,82.286,3.92982311]
[1771545917436,3.84291608,82.321,82.286,3.92982311]
[1771545918039,3.84291608,82.321,82.278,10.9444]
[1771545918635,3.02182722,82.32,82.278,10.9444]
[1771545918838,3.84291608,82.318,82.278,10.9444]
[1771545921243,3.84291608,82.318,82.271,3.92982311]
[1771545921741,3.84291608,82.318,82.275,3.92982311]
[1771545922441,3.84291608,82.318,82.276,3.92982311]
[1771545923342,10.9395,82.316,82.277,3.92982311]
[1771545924341,10.9395,82.316,82.278,3.92982311]
[1771545925142,10.9395,82.316,82.279,3.92982311]
[1771545926141,10.9395,82.316,82.28,3.92982311]
[1771545927142,10.9395,82.316,82.281,3.92982311]
[1771545927348,21.8693,82.353,82.291,3.92982311]
[1771545927349,10.9382,82.326,82.291,3.92982311]
[1771545928442,3.84291608,82.343,82.291,3.92982311]
[1771545928443,10.937,82.335,82.291,3.92982311]
[1771545929451,10.937,82.335,82.301,3.92982311]
[1771545930454,21.8647,82.37,82.3,3.02389456]
[1771545930455,3.84291608,82.355,82.311,3.92982311]
[1771545930754,3.84291608,82.369,82.311,3.92982311]
[1771545931749,3.84291608,82.353,82.311,3.92982311]
[1771545932747,10.9361,82.342,82.311,3.92982311]
[1771545933353,3.84291608,82.353,82.311,3.92982311]
[1771545934648,3.84291608,82.337,82.292,22.57534411]
[1771545934848,3.84291608,82.337,82.287,3.92982311]
[1771545934849,3.84291608,82.337,82.291,3.92982311]
[1771545935653,3.84291608,82.334,82.291,3.92982311]
[1771545937353,3.84291608,82.334,82.293,14.60473633]
[1771545938955,3.84291608,82.334,82.294,3.66233633]
[1771545940158,3.89991602,82.346,82.301,3.66233633]
[1771545941759,3.89991602,82.343,82.301,3.66233633]
[1771545942755,14.83621602,82.34,82.301,3.66233633]
[1771545943254,3.89991602,82.339,82.301,3.66233633]
[1771545944164,3.89991602,82.336,82.301,3.66233633]
[1771545959480,3.89991602,82.35,82.311,3.66233633]
[1771545959874,3.89991602,82.35,82.312,3.66233633]
[1771545962077,3.89991602,82.35,82.282,30.10453571]
[1771545962078,3.79124711,82.381,82.331,3.80380726]
[1771545963175,3.79124711,82.379,82.331,3.80380726]
[1771545963676,3.79124711,82.374,82.331,3.80380726]
[1771545965474,3.79124711,82.374,82.332,10.9372]
[1771545967480,3.99520718,82.371,82.331,3.80380726]
[1771545969281,3.99520718,82.368,82.331,3.80380726]
[1771545970283,10.9329,82.366,82.331,3.80380726]
[1771545970484,14.92810718,82.366,82.331,3.80380726]
[1771545971977,21.8536,82.412,82.331,3.80380726]
[1771545971978,10.9319,82.374,82.331,3.80380726]
[1771545972484,10.9319,82.374,82.341,3.93888177]
[1771545974483,10.9327,82.367,82.341,3.93888177]
[1771545975279,3.99520718,82.379,82.341,3.93888177]
[1771545975681,3.99520718,82.39,82.341,3.93888177]
[1771545975884,3.99520718,82.39,82.351,3.93888177]
[1771545976381,3.99520718,82.402,82.361,3.93888177]
[1771545977781,10.9283,82.401,82.361,3.93888177]
[1771545979685,3.99520718,82.406,82.361,3.93888177]
[1771545980886,3.99520718,82.403,82.361,3.93888177]
[1771545981081,3.02389456,82.4,82.349,3.93888177]
[1771545981284,3.99520718,82.387,82.349,3.93888177]
[1771545991399,3.99520718,82.385,82.349,3.93888177]
[1771545994299,3.0184857,82.39,82.349,3.93888177]
[1771545994300,3.99520718,82.379,82.349,3.93888177]
[1771545997392,3.99520718,82.379,82.303,30.10453571]
[1771545997393,3.9512273,82.404,82.351,3.88412877]
[1771545997588,3.9512273,82.404,82.361,3.88412877]
[1771545998697,10.9282,82.401,82.361,3.88412877]
[1771545999594,3.9512273,82.404,82.361,3.88412877]
[1771546004603,10.928,82.403,82.361,3.88412877]
[1771546007099,10.9287,82.397,82.361,3.88412877]
[1771546008909,14.8803273,82.394,82.361,3.88412877]
[1771546013506,3.9512273,82.394,82.361,3.88412877]
[1771546017203,3.9512273,82.394,82.353,10.9344]
[1771546017404,3.9512273,82.386,82.352,22.57534411]
[1771546017609,3.9512273,82.386,82.309,37.62509841]
[1771546017610,3.9512273,82.379,82.335,22.57534411]
[1771546017805,3.9512273,82.379,82.334,22.57534411]
[1771546018210,3.9512273,82.379,82.335,33.51214411]
[1771546018413,3.9512273,82.379,82.335,10.9368]
[1771546019009,3.9512273,82.376,82.337,10.9366]
[1771546020404,3.9512273,82.376,82.338,3.88412877]
[1771546020605,3.9512273,82.376,82.34,3.88412877]
[1771546021111,3.9512273,82.376,82.341,3.88412877]
[1771546021303,3.9512273,82.386,82.35,3.88412877]
[1771546021511,10.9294,82.392,82.353,3.88412877]
[1771546022107,14.67476298,82.392,82.353,3.88412877]
[1771546022607,10.9298,82.389,82.353,3.88412877]
[1771546024413,10.9305,82.384,82.353,3.88412877]
[1771546024609,3.74536298,82.383,82.346,22.57534411]
[1771546024809,3.74536298,82.383,82.343,26.23867183]
[1771546025014,3.74536298,82.381,82.343,26.23867183]
[1771546025515,3.74536298,82.375,82.343,22.57534411]
[1771546025704,36.47,82.443,82.279,52.64976702]
[1771546025705,3.74536298,82.369,82.331,22.57534411]
[1771546025906,3.74536298,82.369,82.33,22.57534411]
[1771546026307,3.74536298,82.369,82.329,22.57534411]
[1771546026712,10.9336,82.36,82.329,22.57534411]
[1771546027315,10.9336,82.36,82.328,22.57534411]
[1771546027816,10.934,82.358,82.328,22.57534411]
[1771546028412,3.97053685,82.359,82.328,22.57534411]
[1771546030116,3.97053685,82.359,82.327,22.57534411]
[1771546031916,3.97053685,82.353,82.322,22.57534411]
[1771546032116,3.97053685,82.353,82.314,22.57534411]
[1771546032316,3.97053685,82.353,82.313,22.57534411]
[1771546032520,3.97053685,82.353,82.314,3.67228336]
[1771546035320,3.97053685,82.353,82.315,3.67228336]
[1771546036520,3.97053685,82.353,82.318,10.9392]
[1771546037615,3.97053685,82.353,82.307,22.57534411]
[1771546037616,3.97053685,82.364,82.321,3.67228336]
[1771546038819,3.97053685,82.364,82.324,3.67228336]
[1771546039215,10.9332,82.363,82.324,3.67228336]
[1771546041321,10.9341,82.357,82.324,3.67228336]
[1771546046826,10.9341,82.357,82.32,3.0184857]
[1771546046827,3.97053685,82.343,82.303,0.07844411]
[1771546047028,3.97053685,82.339,82.301,733.35375121]
[1771546047327,3.97053685,82.339,82.301,475.51827359]
[1771546047722,3.97053685,82.337,82.301,475.51827359]
[1771546047921,3.97053685,82.337,82.295,3.67228336]
[1771546050430,10.9373,82.332,82.295,3.67228336]
[1771546051027,14.90783685,82.332,82.295,3.67228336]
[1771546052236,10.9376,82.33,82.295,3.67228336]
[1771546053129,3.97053685,82.331,82.301,3.67228336]
[1771546053330,3.97053685,82.336,82.301,3.67228336]
[1771546053528,10.9353,82.348,82.311,3.67228336]
[1771546054937,10.9353,82.348,82.32,3.02257344]
[1771546055341,10.9344,82.355,82.32,3.02257344]